bitfinex/quotes_SOLUSD_20250528
["timestamp","ask_amount","ask_price","bid_price","bid_amount"]
[1748421132286,10.43597946,173.86,173.81,1.5668]
[1748421132489,10.43597946,173.84,173.8,10.43597946]
[1748421132783,10.43597946,173.84,173.79,19.35597946]
[1748421132984,10.43597946,173.83,173.79,19.35597946]
[1748421133585,10.43597946,173.83,173.79,10.43597946]
[1748421133962,5.75307789,173.82,173.79,16.36416826]
[1748421136290,5.75307789,173.82,173.8,16.36416826]
[1748421137388,5.75274693,173.83,173.8,16.36416826]
[1748421139297,16.36416826,173.83,173.79,16.36416826]
[1748421140183,16.36416826,173.84,173.8,16.36416826]
[1748421142265,5.75274693,173.83,173.8,16.36416826]
[1748421145096,5.75274693,173.83,173.79,16.36416826]
[1748421148716,5.75274693,173.83,173.8,16.36416826]
[1748421149500,16.36416826,173.81,173.77,88.1]
[1748421149693,16.36416826,173.81,173.76,42.36416826]
[1748421149891,16.36416826,173.8,173.76,16.36416826]
[1748421150279,16.36416826,173.81,173.76,16.36416826]
[1748421150487,20.13461427,173.83,173.77,16.36416826]
[1748421150710,36.49878253,173.83,173.78,16.36416826]
[1748421151735,16.36416826,173.82,173.78,16.36416826]
[1748421153128,5.75340889,173.81,173.78,16.36416826]
[1748421155817,22.11757715,173.81,173.77,16.36416826]
[1748421156018,10.47554362,173.81,173.77,10.47554362]
[1748421156443,10.47554362,173.81,173.76,10.47554362]
[1748421156619,10.47554362,173.8,173.76,10.47554362]
[1748421157330,14.38186734,173.83,173.75,114.1]
[1748421157331,10.47554362,173.79,173.75,98.57554362]
[1748421157511,10.47554362,173.79,173.75,10.47554362]
[1748421157908,5.75440211,173.78,173.75,10.47554362]
[1748421159340,5.75440211,173.78,173.73,27.5186]
[1748421159511,5.75440211,173.78,173.75,10.47554362]
[1748421163331,26.0,173.83,173.75,10.47554362]
[1748421163531,10.47554362,173.79,173.75,10.47554362]
[1748421164048,10.47554362,173.78,173.71,15.1053]
[1748421164222,10.47554362,173.76,173.71,19.39554362]
[1748421165333,5.75605825,173.73,173.7,10.47554362]
[1748421165535,5.75605825,173.73,173.69,12.10494362]
[1748421165737,16.23160187,173.73,173.69,10.47554362]
[1748421165922,22.14012252,173.73,173.69,16.38406427]
[1748421166117,22.14012252,173.73,173.68,16.38406427]
[1748421169733,36.53026814,173.73,173.68,16.38406427]
[1748421171571,16.38406427,173.69,173.55,1.5222]
[1748421171778,16.38406427,173.62,173.58,16.38406427]
[1748421172071,16.38406427,173.61,173.56,16.38406427]
[1748421172447,16.38406427,173.6,173.55,17.90626427]
[1748421172775,16.38406427,173.6,173.55,16.38406427]
[1748421173242,22.14476477,173.59,173.55,16.38406427]
[1748421173567,5.7607005,173.59,173.55,16.38406427]
[1748421173730,22.14476477,173.59,173.55,16.38406427]
[1748421174760,5.7607005,173.59,173.55,16.38406427]
[1748421175563,22.14476477,173.59,173.55,16.38406427]
[1748421176871,16.38406427,173.58,173.54,16.38406427]
[1748421177752,5.76136429,173.57,173.54,16.38406427]
[1748421178847,5.76111539,173.58,173.55,16.38406427]
[1748421179247,22.14517966,173.58,173.54,16.38406427]
[1748421179443,16.38406427,173.57,173.53,16.38406427]
[1748421179658,5.76111539,173.58,173.53,16.38406427]
[1748421179659,22.14517966,173.58,173.53,16.38406427]
[1748421180842,5.76111539,173.58,173.52,114.1]
[1748421181162,5.76111539,173.58,173.51,10.4422]
[1748421181163,16.38406427,173.55,173.51,16.38406427]
[1748421181391,16.38406427,173.55,173.5,16.38406427]
[1748421181575,16.38406427,173.54,173.5,16.38406427]
[1748421181777,16.38406427,173.53,173.49,16.38406427]
[1748421182087,16.38406427,173.54,173.49,16.38406427]
[1748421182479,5.76269232,173.53,173.49,16.38406427]
[1748421182793,15.93128094,173.58,173.5,16.38406427]
[1748421182794,22.146364,173.55,173.5,16.38406427]
[1748421182999,16.38406427,173.53,173.47,115.7476]
[1748421183170,26.0,173.52,173.43,1.5867]
[1748421183370,16.38406427,173.51,173.46,16.38406427]
[1748421183979,16.38406427,173.51,173.43,7.35259125]
[1748421184192,16.38406427,173.5,173.43,1.5867]
[1748421184393,26.0,173.51,173.43,1.5867]
[1748421184584,22.14836713,173.49,173.44,16.38406427]
[1748421184783,5.76373889,173.5,173.47,16.38406427]
[1748421184999,5.76302443,173.52,173.48,16.38406427]
[1748421185197,5.76302443,173.52,173.5,16.38406427]
[1748421186229,5.76302443,173.52,173.45,60.94]
[1748421186230,22.1470887,173.52,173.45,60.94]
[1748421186387,22.1470887,173.52,173.47,16.38406427]
[1748421186592,22.1470887,173.52,173.45,60.94]
[1748421186809,22.1470887,173.52,173.47,16.38406427]
[1748421187009,22.1470887,173.52,173.48,16.38406427]
[1748421187216,22.1470887,173.52,173.45,60.94]
[1748421187515,5.76302443,173.52,173.47,16.38406427]
[1748421187696,22.1470887,173.52,173.47,16.38406427]
[1748421188401,16.38406427,173.51,173.47,16.38406427]
[1748421188588,5.76368876,173.5,173.47,16.38406427]
[1748421188786,5.76368876,173.5,173.43,27.5867]
[1748421188787,22.14775303,173.5,173.43,27.5867]
[1748421189103,22.14775303,173.5,173.45,16.38406427]
[1748421189309,22.14775303,173.5,173.43,27.5867]
[1748421189509,22.14775303,173.5,173.45,16.38406427]
[1748421190513,5.76368876,173.5,173.45,16.38406427]
[1748421190814,22.14775303,173.5,173.45,16.38406427]
[1748421191290,5.76368876,173.5,173.46,16.38406427]
[1748421193405,22.14775303,173.5,173.45,16.38406427]
[1748421193621,16.38406427,173.49,173.44,16.38406427]
[1748421193796,22.14775303,173.5,173.45,16.38406427]
[1748421194697,16.38406427,173.52,173.47,16.38406427]
[1748421195012,5.76236026,173.54,173.43,33.35267514]
[1748421195013,16.38406427,173.51,173.46,16.38406427]
[1748421195404,5.76368876,173.5,173.46,16.38406427]
[1748421196721,5.76368876,173.5,173.44,5.7655555]
[1748421196722,5.76269232,173.53,173.47,16.38406427]
[1748421196918,22.14675659,173.53,173.48,16.38406427]
[1748421197113,5.76269232,173.53,173.49,16.38406427]
[1748421197517,5.76269232,173.53,173.43,36.62041313]
[1748421197518,22.14675659,173.53,173.48,16.38406427]
[1748421199519,22.14675659,173.53,173.47,31.76464685]
[1748421199520,5.76269232,173.53,173.49,16.38406427]
[1748421202048,22.14675659,173.53,173.49,16.38406427]
[1748421202219,5.76269232,173.53,173.5,16.38406427]
[1748421202724,22.14675659,173.53,173.49,16.38406427]
[1748421203623,16.38406427,173.52,173.48,16.38406427]
[1748421203926,36.55348741,173.53,173.47,130.48406427]
[1748421204119,16.38406427,173.52,173.47,130.48406427]
[1748421204518,16.38406427,173.52,173.47,42.38406427]
[1748421204720,16.38406427,173.51,173.46,42.38406427]
[1748421204935,5.76368876,173.5,173.46,42.38406427]
[1748421205136,5.76368876,173.5,173.47,16.38406427]
[1748421207047,5.76368876,173.5,173.46,42.38406427]
[1748421208517,5.76368876,173.5,173.47,16.38406427]
[1748421210037,5.76302443,173.52,173.48,16.38406427]
[1748421210241,5.76302443,173.52,173.49,16.38406427]
[1748421211442,5.76269232,173.53,173.5,16.38406427]
[1748421212043,5.76269232,173.53,173.51,16.38406427]
[1748421212935,5.76236026,173.54,173.5,16.38406427]
[1748421213840,22.14642453,173.54,173.5,16.38406427]
[1748421214543,5.76236026,173.54,173.5,16.38406427]
[1748421216950,5.76236026,173.54,173.52,16.38406427]
[1748421217525,5.76136429,173.57,173.53,16.38406427]
[1748421217742,5.76136429,173.57,173.54,16.38406427]
[1748421218845,7.88991118,173.57,173.54,16.38406427]
[1748421219041,5.76136429,173.57,173.54,16.38406427]
[1748421219648,7.89034391,173.57,173.54,16.38406427]
[1748421219820,5.76136429,173.57,173.54,16.38406427]
[1748421220018,14.40316129,173.58,173.54,16.38406427]
[1748421220219,32.91634127,173.58,173.54,16.38406427]
[1748421220424,30.78722556,173.58,173.5,89.7157]
[1748421220631,30.78722556,173.58,173.54,16.38406427]
[1748421220844,30.78722556,173.58,173.53,16.38406427]
[1748421221445,16.38406427,173.57,173.53,16.38406427]
[1748421221852,16.38406427,173.57,173.52,16.38406427]
[1748421222026,5.76169624,173.56,173.52,16.38406427]
[1748421222730,20.16593684,173.56,173.52,16.38406427]
[1748421223738,36.55000111,173.56,173.51,42.38406427]
[1748421224251,36.55000111,173.56,173.51,16.38406427]
[1748421224774,36.55000111,173.56,173.52,16.38406427]
[1748421224934,36.55000111,173.56,173.51,16.38406427]
[1748421227850,16.38406427,173.54,173.5,42.38406427]
[1748421228258,16.38406427,173.54,173.5,26.0]
[1748421228758,16.38406427,173.54,173.49,16.38406427]
[1748421229650,20.16942314,173.53,173.49,16.38406427]
[1748421231060,20.16942314,173.53,173.46,98.6234]
[1748421231255,20.16942314,173.53,173.49,16.38406427]
[1748421231833,36.55348741,173.53,173.49,16.38406427]
[1748421232055,36.55348741,173.53,173.48,16.38406427]
[1748421232742,20.16942314,173.53,173.49,16.38406427]
[1748421233165,20.16942314,173.53,173.46,1.5234]
[1748421233340,20.16942314,173.53,173.49,16.38406427]
[1748421234656,36.55348741,173.53,173.48,16.38406427]
[1748421234957,5.76269232,173.53,173.51,16.38406427]
[1748421235159,5.76269232,173.53,173.52,16.38406427]
[1748421236350,16.38406427,173.57,173.52,16.38406427]
[1748421238168,48.96595425,173.59,173.56,16.38406427]
[1748421238169,5.7607005,173.59,173.56,16.38406427]
[1748421238339,16.38406427,173.62,173.58,16.38406427]
[1748421238543,16.38406427,173.59,173.53,1.5196]
[1748421238852,16.38406427,173.59,173.54,16.38406427]
[1748421239246,16.38406427,173.59,173.53,1.5196]
[1748421239459,16.38406427,173.59,173.54,16.38406427]
[1748421239763,20.15548516,173.65,173.58,16.38406427]
[1748421239970,20.15548516,173.65,173.53,1.5196]
[1748421239971,16.38406427,173.63,173.55,26.0]
[1748421240167,16.38406427,173.62,173.58,16.38406427]
[1748421240361,22.14410113,173.61,173.57,16.38406427]
[1748421240860,5.76003686,173.61,173.57,16.38406427]
[1748421241254,5.76003686,173.61,173.58,16.38406427]
[1748421242138,5.7597051,173.62,173.59,16.38406427]
[1748421242869,2.67424307,173.69,173.61,16.38406427]
[1748421243053,5.75738384,173.69,173.66,16.38406427]
[1748421243251,25.36406427,173.73,173.68,16.38406427]
[1748421243566,5.75638959,173.72,173.69,16.38406427]
[1748421243784,5.75638959,173.72,173.7,16.38406427]
[1748421243960,14.73608797,173.73,173.7,16.38406427]
[1748421244263,5.75608797,173.73,173.7,16.38406427]
[1748421244455,5.75608797,173.73,173.64,32.3034]
[1748421244663,16.38406427,173.71,173.67,16.38406427]
[1748421244852,16.38406427,173.69,173.64,42.38406427]
[1748421245052,16.38406427,173.69,173.65,16.38406427]
[1748421245259,16.38406427,173.68,173.64,26.0]
[1748421245450,16.38406427,173.68,173.63,16.38406427]
[1748421246048,16.38406427,173.66,173.62,16.38406427]
[1748421246253,5.75871004,173.65,173.61,16.38406427]
[1748421246752,36.53954943,173.65,173.61,16.38406427]
[1748421246951,20.15548516,173.65,173.6,16.38406427]
[1748421247262,20.15548516,173.65,173.61,16.38406427]
[1748421248453,5.75871004,173.65,173.61,16.38406427]
[1748421248656,5.75871004,173.65,173.62,16.38406427]
[1748421248880,20.14869484,173.71,173.61,16.38406427]
[1748421249190,5.75672097,173.71,173.69,16.38406427]
[1748421249372,5.75672097,173.71,173.7,16.38406427]
[1748421250179,5.75672097,173.71,173.69,16.38406427]
[1748421250364,8.98,173.72,173.69,16.38406427]
[1748421250365,14.73643544,173.72,173.69,16.38406427]
[1748421250570,5.75643544,173.72,173.7,16.38406427]
[1748421250780,5.75572694,173.74,173.7,16.38406427]
[1748421251082,5.75572694,173.74,173.71,16.38406427]
[1748421251863,5.75546164,173.75,173.72,16.38406427]
[1748421252069,5.75546164,173.75,173.73,16.38406427]
[1748421252271,5.75506445,173.76,173.73,16.38406427]
[1748421253594,5.75506445,173.76,173.75,16.38406427]
[1748421253762,10.5664,173.82,173.75,16.38406427]
[1748421253972,229.24,173.88,173.7,42.38406427]
[1748421253973,5.75340889,173.81,173.8,16.38406427]
[1748421254295,5.7510927,173.88,173.83,26.0]
[1748421254810,20.12882446,173.88,173.85,16.38406427]
[1748421254978,5.7510927,173.88,173.87,16.38406427]
[1748421255168,5.7510927,173.88,173.86,16.38406427]
[1748421255360,5.7510927,173.88,173.82,26.0]
[1748421255896,5.7510927,173.88,173.86,16.38406427]
[1748421256352,20.12650948,173.9,173.86,16.38406427]
[1748421256864,20.12650948,173.9,173.87,16.38406427]
[1748421257371,36.51057375,173.9,173.82,27.6251]
[1748421257573,16.38406427,173.89,173.85,16.38406427]
[1748421257966,16.38406427,173.89,173.82,27.6251]
[1748421257967,16.38406427,173.88,173.82,27.6251]
[1748421258161,16.38406427,173.88,173.83,16.38406427]
[1748421258365,16.38406427,173.89,173.84,16.38406427]
[1748421258600,16.38406427,173.85,173.79,26.0]
[1748421258765,16.38406427,173.82,173.78,16.38406427]
[1748421258964,16.38406427,173.82,173.77,16.38406427]
[1748421259184,16.38406427,173.82,173.76,6.657]
[1748421259185,16.38406427,173.82,173.78,16.38406427]
[1748421259393,16.38406427,173.82,173.77,16.38406427]
[1748421259689,45.49288873,173.88,173.77,16.38406427]
[1748421259690,16.38406427,173.81,173.77,16.38406427]
[1748421259899,16.38406427,173.8,173.75,25.36406427]
[1748421260113,16.38406427,173.79,173.74,16.38406427]
[1748421260301,6.4969,173.85,173.78,16.38406427]
[1748421260607,5.75241601,173.84,173.79,16.38406427]
[1748421260805,16.38406427,173.82,173.77,16.38406427]
[1748421260982,16.38406427,173.81,173.77,16.38406427]
[1748421261409,16.38406427,173.82,173.77,16.38406427]
[1748421261879,24.25216111,173.8,173.76,24.25216111]
[1748421262085,24.25216111,173.8,173.75,50.25216111]
[1748421262911,5.754071,173.79,173.75,50.25216111]
[1748421263279,30.00623211,173.79,173.75,24.25216111]
[1748421263786,5.754071,173.79,173.75,24.25216111]
[1748421265208,8.98,173.82,173.78,24.25216111]
[1748421265522,33.23216111,173.82,173.78,24.25216111]
[1748421265701,24.25216111,173.81,173.73,26.0]
[1748421265900,24.25216111,173.8,173.75,24.25216111]
[1748421266114,24.25216111,173.8,173.76,24.25216111]
[1748421266323,24.25216111,173.8,173.75,24.25216111]
[1748421267088,14.38068203,173.85,173.79,24.25216111]
[1748421267320,24.25216111,173.84,173.79,24.25216111]
[1748421267522,38.63284314,173.85,173.8,24.25216111]
[1748421267707,5.75241601,173.84,173.8,24.25216111]
[1748421268025,5.75241601,173.84,173.81,24.25216111]
[1748421268229,24.25216111,173.82,173.78,24.25216111]
[1748421268392,24.25216111,173.82,173.76,88.1]
[1748421268393,24.25216111,173.83,173.79,24.25216111]
[1748421268591,44.38561715,173.84,173.8,24.25216111]
[1748421272590,44.38561715,173.84,173.72,6.1656]
[1748421272591,24.25216111,173.83,173.72,6.1656]
[1748421272792,74.89553611,173.84,173.72,6.1656]
[1748421272793,24.25216111,173.8,173.76,24.25216111]
[1748421273024,5.75307789,173.82,173.78,24.25216111]
[1748421273430,20.13577263,173.82,173.78,24.25216111]
[1748421273806,20.13577263,173.82,173.77,24.25216111]
[1748421274021,20.13577263,173.82,173.78,24.25216111]
[1748421274735,44.38793374,173.82,173.77,24.25216111]
[1748421275034,20.13577263,173.82,173.77,24.25216111]
[1748421276114,24.25216111,173.81,173.76,24.25216111]
[1748421277135,24.25216111,173.79,173.74,24.25216111]
[1748421277343,5.75473326,173.77,173.73,24.25216111]
[1748421278040,30.00689437,173.77,173.73,24.25216111]
[1748421279943,44.39372754,173.77,173.73,24.25216111]
[1748421280649,44.39372754,173.77,173.72,50.25216111]
[1748421280829,24.25216111,173.76,173.72,26.0]
[1748421281214,24.25216111,173.76,173.72,50.25216111]
[1748421281616,44.39372754,173.77,173.73,24.25216111]
[1748421282050,20.14156643,173.77,173.73,16.37764153]
[1748421283330,5.75473326,173.77,173.74,16.37764153]
[1748421284025,5.75440211,173.78,173.74,16.37764153]
[1748421286624,5.75373993,173.8,173.77,16.37764153]
[1748421286950,5.75373993,173.8,173.78,16.37764153]
[1748421287351,5.75349146,173.81,173.79,16.37764153]
[1748421287556,5.75349146,173.81,173.75,26.0]
[1748421287557,5.75349146,173.81,173.8,16.37764153]
[1748421287851,9.28,173.86,173.8,16.37764153]
[1748421288023,16.37764153,173.85,173.81,16.37764153]
[1748421288630,36.50993948,173.85,173.81,16.37764153]
[1748421290138,36.50993948,173.85,173.8,16.37764153]
[1748421290340,16.37764153,173.84,173.8,16.37764153]
[1748421290649,16.37764153,173.81,173.76,16.37764153]
[1748421290840,16.37764153,173.79,173.74,16.37764153]
[1748421291829,16.37764153,173.79,173.75,16.37764153]
[1748421292237,22.13138146,173.8,173.76,16.37764153]
[1748421292623,20.13527783,173.83,173.76,16.37764153]
[1748421292825,22.13038846,173.83,173.79,16.37764153]
[1748421293336,22.13038846,173.83,173.8,16.37764153]
[1748421293337,5.75274693,173.83,173.8,16.37764153]
[1748421294432,5.75274693,173.83,173.81,16.37764153]
[1748421294756,5.75241601,173.84,173.81,16.37764153]
[1748421295632,5.75241601,173.84,173.82,16.37764153]
[1748421296038,5.75241601,173.84,173.81,16.37764153]
[1748421296957,5.75241601,173.84,173.8,16.37764153]
[1748421301049,5.75241601,173.84,173.77,1.653]
[1748421301050,16.37764153,173.82,173.77,1.653]
[1748421301247,16.37764153,173.8,173.72,101.79975231]
[1748421301457,16.37764153,173.8,173.75,16.37764153]
[1748421301747,16.37764153,173.81,173.77,16.37764153]
[1748421302363,5.75373993,173.8,173.77,16.37764153]
[1748421304251,22.13138146,173.8,173.76,16.37764153]
[1748421304861,16.37764153,173.79,173.74,16.37764153]
[1748421305963,16.37764153,173.79,173.75,16.37764153]
[1748421306345,5.75440211,173.78,173.75,16.37764153]
[1748421307368,5.75440211,173.78,173.74,16.37764153]
[1748421307680,16.37764153,173.75,173.68,8.128]
[1748421307847,16.37764153,173.74,173.69,16.37764153]
[1748421308044,16.37764153,173.75,173.7,16.37764153]
[1748421308255,16.37764153,173.76,173.72,16.37764153]
[1748421308579,16.37764153,173.77,173.72,16.37764153]
[1748421309860,5.75506445,173.76,173.72,16.37764153]
[1748421310244,22.13270598,173.76,173.72,16.37764153]
[1748421310644,36.52036712,173.76,173.71,16.37764153]
[1748421313959,5.75506445,173.76,173.73,16.37764153]
[1748421314160,5.75440211,173.78,173.75,16.37764153]
[1748421314462,36.51804893,173.78,173.73,42.37764153]
[1748421314675,36.51804893,173.78,173.73,26.0]
[1748421314872,16.37764153,173.75,173.71,16.37764153]
[1748421315170,16.37764153,173.76,173.71,16.37764153]
[1748421315689,16.37764153,173.76,173.72,16.37764153]
[1748421316165,16.37764153,173.77,173.72,16.37764153]
[1748421317999,5.75506445,173.76,173.72,16.37764153]
[1748421318573,22.13270598,173.76,173.72,16.37764153]
[1748421319093,36.52036712,173.76,173.72,16.37764153]
[1748421320184,36.52036712,173.76,173.71,16.37764153]
[1748421321394,20.14272559,173.76,173.7,26.0]
[1748421321567,36.52036712,173.76,173.71,16.37764153]
[1748421322491,16.37764153,173.73,173.68,132.10474153]
[1748421322680,16.37764153,173.73,173.68,44.00474153]
[1748421323578,16.37764153,173.74,173.69,16.37764153]
[1748421324592,5.75605825,173.73,173.69,16.37764153]
[1748421328779,5.75605825,173.73,173.7,16.37764153]
[1748421329415,14.38730254,173.77,173.72,16.37764153]
[1748421329416,5.75506445,173.76,173.72,16.37764153]
[1748421329689,5.75506445,173.76,173.74,16.37764153]
[1748421330684,5.75473326,173.77,173.74,16.37764153]
[1748421331069,5.75453515,173.78,173.75,16.37764153]
[1748421331268,5.75453515,173.78,173.76,16.37764153]
[1748421332371,5.754071,173.79,173.76,16.37764153]
[1748421333697,5.754071,173.79,173.77,16.37764153]
[1748421334297,20.13924851,173.79,173.76,16.37764153]
[1748421334482,16.37764153,173.78,173.73,16.37764153]
[1748421335999,16.37764153,173.78,173.74,16.37764153]
[1748421336177,5.75473326,173.77,173.74,16.37764153]
[1748421337296,30.76281904,173.79,173.75,16.37764153]
[1748421337297,5.75440211,173.78,173.75,16.37764153]
[1748421337499,5.75440211,173.78,173.76,16.37764153]
[1748421339003,5.754071,173.79,173.76,16.37764153]
[1748421342293,20.13924851,173.79,173.76,16.37764153]
[1748421342496,20.13924851,173.79,173.75,16.37764153]
[1748421342497,36.51689004,173.79,173.75,16.37764153]
[1748421343902,36.51689004,173.79,173.74,16.37764153]
[1748421344106,16.37764153,173.78,173.74,16.37764153]
[1748421345516,36.51689004,173.79,173.74,16.37764153]
[1748421349892,16.37764153,173.75,173.68,1.6271]
[1748421350090,16.37764153,173.72,173.68,16.37764153]
[1748421350484,5.75672097,173.71,173.68,16.37764153]
[1748421352395,5.75644956,173.72,173.69,16.37764153]
[1748421357220,5.7560713,173.73,173.7,16.37764153]
[1748421358028,22.13371283,173.73,173.69,16.37764153]
[1748421358918,22.13371283,173.73,173.68,16.37764153]
[1748421360104,22.13371283,173.73,173.66,88.1]
[1748421360290,16.37764153,173.72,173.67,16.37764153]
[1748421361296,5.75672097,173.71,173.67,16.37764153]
[1748421361706,16.37764153,173.68,173.62,88.1]
[1748421362033,16.37764153,173.67,173.63,16.37764153]
[1748421363604,5.75837844,173.66,173.63,16.37764153]
[1748421364007,16.37764153,173.7,173.65,16.37764153]
[1748421364202,5.75672097,173.71,173.68,16.37764153]
[1748421364413,5.75672097,173.71,173.69,16.37764153]
[1748421364926,5.75648417,173.72,173.7,16.37764153]
[1748421365110,5.75572694,173.74,173.71,16.37764153]
[1748421365306,5.75572694,173.74,173.72,16.37764153]
[1748421367708,5.75572694,173.74,173.71,16.37764153]
[1748421368804,5.75572694,173.74,173.72,16.37764153]
[1748421369130,5.75572694,173.74,173.71,16.37764153]
[1748421369437,20.14504431,173.74,173.71,16.37764153]
[1748421370018,5.75572694,173.74,173.71,16.37764153]
[1748421373334,5.75572694,173.74,173.72,16.37764153]
[1748421373815,5.75572694,173.74,173.73,16.37764153]
[1748421375216,5.75572694,173.74,173.72,16.37764153]
[1748421375720,5.75572694,173.74,173.73,16.37764153]
[1748421376124,5.75572694,173.74,173.72,16.37764153]
[1748421376325,5.75572694,173.74,173.69,114.1]
[1748421376536,5.75572694,173.74,173.73,16.37764153]
[1748421377338,5.75473326,173.77,173.73,16.37764153]
[1748421377539,20.14156643,173.77,173.73,16.37764153]
[1748421377729,16.37764153,173.75,173.71,16.37764153]
[1748421378645,5.75473326,173.77,173.74,16.37764153]
[1748421378822,5.75473326,173.77,173.76,16.37764153]
[1748421379022,5.75473326,173.77,173.75,16.37764153]
[1748421379241,5.75473326,173.77,173.72,26.0]
[1748421379449,22.13237479,173.77,173.73,26.0]
[1748421379644,16.37764153,173.76,173.72,16.37764153]
[1748421379816,36.51920796,173.77,173.73,16.37764153]
[1748421380929,20.14156643,173.77,173.73,16.37764153]
[1748421381143,20.14156643,173.77,173.74,16.37764153]
[1748421381642,14.38683317,173.77,173.74,16.37764153]
[1748421382146,5.75440211,173.78,173.74,16.37764153]
[1748421382317,20.1404074,173.78,173.74,16.37764153]
[1748421382516,26.0,173.77,173.74,16.37764153]
[1748421383552,5.75506445,173.76,173.75,16.37764153]
[1748421384430,26.0,173.79,173.75,16.37764153]
[1748421384634,26.0,173.79,173.72,1.6027]
[1748421384635,5.754071,173.79,173.78,16.37764153]
[1748421387215,5.75340889,173.81,173.78,16.37764153]
[1748421387423,5.75340889,173.81,173.8,16.37764153]
[1748421388329,5.75274693,173.83,173.8,16.37764153]
[1748421388648,5.75274693,173.83,173.81,16.37764153]
[1748421388843,5.75274693,173.83,173.8,16.37764153]
[1748421390449,36.51163325,173.84,173.8,16.37764153]
[1748421390953,16.37764153,173.82,173.78,16.37764153]
[1748421391252,36.51163325,173.84,173.8,16.37764153]
[1748421391761,20.13399172,173.84,173.8,16.37764153]
[1748421393848,5.75241601,173.84,173.82,16.37764153]
[1748421394053,5.75241601,173.84,173.81,16.37764153]
[1748421394365,5.75241601,173.84,173.8,16.37764153]
[1748421394859,36.51109757,173.84,173.8,16.37764153]
[1748421396444,36.51109757,173.84,173.79,16.37764153]
[1748421396445,16.37764153,173.83,173.79,16.37764153]
[1748421396844,16.37764153,173.8,173.77,88.1]
[1748421397037,16.37764153,173.8,173.75,16.37764153]
[1748421398235,16.37764153,173.76,173.71,9.16]
[1748421398537,16.37764153,173.75,173.7,16.37764153]
[1748421399969,50.56031798,173.78,173.69,16.37764153]
[1748421399970,16.37764153,173.74,173.69,16.37764153]
[1748421400138,16.37764153,173.73,173.68,16.37764153]
[1748421400345,5.75638959,173.72,173.68,16.37764153]
[1748421402270,5.75638959,173.72,173.69,16.37764153]
[1748421404569,16.37764153,173.71,173.66,16.37764153]
[1748421404775,5.75705238,173.7,173.66,16.37764153]
[1748421406958,5.75705238,173.7,173.67,16.37764153]
[1748421409553,5.75705238,173.7,173.69,16.37764153]
[1748421410370,5.75705238,173.7,173.68,16.37764153]
[1748421410582,14.38896436,173.75,173.69,16.37764153]
[1748421410780,14.38896436,173.75,173.71,16.37764153]
[1748421410969,30.76660589,173.75,173.71,16.37764153]
[1748421411280,5.75572694,173.74,173.71,16.37764153]
[1748421411774,5.75572694,173.74,173.7,16.37764153]
[1748421412073,20.14504431,173.74,173.7,16.37764153]
[1748421412263,20.14504431,173.74,173.71,16.37764153]
[1748421412979,5.75572694,173.74,173.71,16.37764153]
[1748421413555,5.75572694,173.74,173.72,16.37764153]
[1748421413774,5.75550865,173.75,173.72,16.37764153]
[1748421414674,5.75550865,173.75,173.73,16.37764153]
[1748421415366,5.75473326,173.77,173.73,16.37764153]
[1748421416774,22.13237479,173.77,173.72,16.37764153]
[1748421417381,20.14156643,173.77,173.73,16.37764153]
[1748421420982,20.14156643,173.77,173.76,16.37764153]
[1748421420983,5.75473326,173.77,173.76,16.37764153]
[1748421422072,5.75440211,173.78,173.76,16.37764153]
[1748421422271,5.75440211,173.78,173.77,16.37764153]
[1748421422790,16.37764153,173.82,173.77,16.37764153]
[1748421422791,5.75307789,173.82,173.77,16.37764153]
[1748421422963,5.75307789,173.82,173.79,16.37764153]
[1748421423903,5.75307789,173.82,173.77,16.37764153]
[1748421423904,16.37764153,173.81,173.77,16.37764153]
[1748421424087,16.37764153,173.8,173.76,16.37764153]
[1748421424401,16.37764153,173.81,173.77,16.37764153]
[1748421425300,5.75373993,173.8,173.77,16.37764153]
[1748421427376,20.13693112,173.81,173.77,16.37764153]
[1748421427573,16.37764153,173.8,173.76,16.37764153]
[1748421428196,16.37764153,173.79,173.73,88.1]
[1748421428379,16.37764153,173.79,173.75,16.37764153]
[1748421429370,5.754071,173.79,173.76,16.37764153]
[1748421431704,20.13924851,173.79,173.76,16.37764153]
[1748421432706,5.754071,173.79,173.76,16.37764153]
[1748421432918,14.83208513,173.85,173.78,16.37764153]
[1748421433211,14.83208513,173.85,173.82,16.37764153]
[1748421433212,29.21270052,173.85,173.82,16.37764153]
[1748421433506,29.21270052,173.85,173.76,35.08]
[1748421433507,29.21270052,173.85,173.83,16.37764153]
[1748421433717,5.75208513,173.85,173.84,16.37764153]
[1748421434384,5.75208513,173.85,173.83,16.37764153]
[1748421434785,5.75142347,173.87,173.83,16.37764153]
[1748421435185,5.75142347,173.87,173.84,16.37764153]
[1748421436309,5.75142347,173.87,173.85,16.37764153]
[1748421436891,14.37829902,173.88,173.85,16.37764153]
[1748421437498,5.75076197,173.89,173.87,16.37764153]
[1748421438110,5.75076197,173.89,173.86,16.37764153]
[1748421440800,5.75076197,173.89,173.87,16.37764153]
[1748421441007,5.75076197,173.89,173.88,16.37764153]
[1748421442581,20.12303799,173.93,173.88,16.37764153]